[Event "Irish Championship 2026"]
[Site "Talbot Hotel Stillorgan, Co.Dublin, IE"]
[Date "2026.08.02"]
[Round "2"]
[White "Hushpit, Lukian"]
[Black "Jessel, Stephen"]
[Result "1-0"]
[Board "61"]
[TimeControl "40/5400+30:1800+30"]
[WhiteFideId "14189208"]
[BlackFideId "628859"]
[WhiteElo "2088"]
[BlackElo "2364"]
[BlackTitle "FM"]
[WhiteClock "0:56:41"]
[BlackClock "0:01:13"]
[Variant "Standard"]
[EndDate "2026.08.02"]
[EndTime "18:11:24"]

1. e4 {[%clk 1:25:08]}  e6 {[%clk 1:30:44]} 2. d4 {[%clk 1:25:33]}  d5 {[%clk 1:30:41]} 3. exd5 {[%clk 1:25:54]}  exd5 {[%clk 1:30:56]}
4. Bd3 {[%clk 1:26:19]}  c5 {[%clk 1:30:45]} 5. dxc5 {[%clk 1:26:40]}  Bxc5 {[%clk 1:31:06]} 6. Nf3 {[%clk 1:25:45]}  Nf6 {[%clk 1:31:09]}
7. O-O {[%clk 1:26:06]}  O-O {[%clk 1:31:30]} 8. Re1 {[%clk 1:23:59]}  Qb6 {[%clk 1:19:54]} 9. Qd2 {[%clk 1:19:23]}  Bg4 {[%clk 1:10:33]}
10. Ne5 {[%clk 1:09:52]}  Nc6 {[%clk 0:59:13]} 11. Nxc6 {[%clk 0:55:17]}  bxc6 {[%clk 0:58:57]} 12. h3 {[%clk 0:55:34]}  Rfe8 {[%clk 0:41:15]}
13. Rf1 {[%clk 0:53:32]}  Be2 {[%clk 0:14:17]} 14. Bxe2 {[%clk 0:48:55]}  Ne4 {[%clk 0:14:16]} 15. Qf4 {[%clk 0:48:18]}  Nxf2 {[%clk 0:11:32]}
16. Qf3 {[%clk 0:47:38]}  Rxe2 {[%clk 0:02:40]} 17. Qxe2 {[%clk 0:46:15]}  Ne4+ {[%clk 0:03:00]} 18. Kh2 {[%clk 0:40:28]}  Bd6+ {[%clk 0:03:06]}
19. Bf4 {[%clk 0:39:58]}  Bxf4+ {[%clk 0:03:27]} 20. Rxf4 {[%clk 0:40:22]}  Qxb2 {[%clk 0:03:39]} 21. Nd2 {[%clk 0:39:15]}  Qxa1 {[%clk 0:03:06]}
22. Nxe4 {[%clk 0:38:44]}  Qe5 {[%clk 0:02:06]} 23. Qf3 {[%clk 0:33:28]}  dxe4 {[%clk 0:02:21]} 24. Qxe4 {[%clk 0:33:54]}  Qc7 {[%clk 0:01:48]}
25. g3 {[%clk 0:33:58]}  Rd8 {[%clk 0:01:35]} 26. Rf2 {[%clk 0:32:44]}  g6 {[%clk 0:01:38]} 27. Qc4 {[%clk 0:30:56]}  h5 {[%clk 0:00:34]}
28. h4 {[%clk 0:30:17]}  c5 {[%clk 0:00:32]} 29. c3 {[%clk 0:29:25]}  Kg7 {[%clk 0:00:33]} 30. a4 {[%clk 0:28:41]}  Rd1 {[%clk 0:00:43]}
31. Qe2 {[%clk 0:28:23]}  Ra1 {[%clk 0:00:32]} 32. Qe4 {[%clk 0:28:09]}  Qd7 {[%clk 0:00:32]} 33. Qe5+ {[%clk 0:28:08]}  Kh7 {[%clk 0:00:53]}
34. c4 {[%clk 0:25:11]}  Rxa4 {[%clk 0:00:51]} 35. Qxc5 {[%clk 0:25:40]}  Qe6 {[%clk 0:00:36]} 36. Qf8 {[%clk 0:25:21]}  f5 {[%clk 0:00:34]}
37. Rb2 {[%clk 0:25:31]}  Qd7 {[%clk 0:00:31]} 38. Qb8 {[%clk 0:24:21]}  Rxc4 {[%clk 0:00:32]} 39. Rb7 {[%clk 0:24:15]}  Rc2+ {[%clk 0:00:32]}
40. Kh3 {[%clk 0:24:40]}  Rd2 {[%clk 0:00:31]} 41. Qc8 {[%clk 0:24:18]}  Qxb7 {[%clk 0:24:53]} 42. Qxb7+ {[%clk 0:54:33]}  Kh6 {[%clk 0:19:41]}
43. Qc8 {[%clk 0:54:46]}  Kh7 {[%clk 0:19:09]} 44. Qc7+ {[%clk 0:55:09]}  Kg8 {[%clk 0:19:06]} 45. Qxa7 {[%clk 0:53:52]}  Rb2 {[%clk 0:08:11]}
46. Qe7 {[%clk 0:53:44]}  Rd2 {[%clk 0:06:10]} 47. Qf6 {[%clk 0:53:30]}  Kh7 {[%clk 0:06:28]} 48. Qf7+ {[%clk 0:53:41]}  Kh6 {[%clk 0:06:47]}
49. Qg8 {[%clk 0:53:31]}  Rd7 {[%clk 0:06:58]} 50. Kg2 {[%clk 0:53:55]}  Rg7 {[%clk 0:02:20]} 51. Qf8 {[%clk 0:54:17]}  Kh7 {[%clk 0:02:13]}
52. Kf3 {[%clk 0:54:42]}  Rg8 {[%clk 0:02:02]} 53. Qf6 {[%clk 0:54:34]}  Ra8 {[%clk 0:02:06]} 54. Qc6 {[%clk 0:53:50]}  Ra7 {[%clk 0:01:06]}
55. Kf4 {[%clk 0:53:58]}  Kh6 {[%clk 0:00:35]} 56. Qe8 {[%clk 0:54:23]}  Rb7 {[%clk 0:00:33]} 57. Qh8+ {[%clk 0:54:45]}  Rh7 {[%clk 0:00:57]}
58. Qf8+ {[%clk 0:55:08]}  Rg7 {[%clk 0:01:24]} 59. Ke5 {[%clk 0:55:31]}  Kh7 {[%clk 0:01:26]} 60. Kf6 {[%clk 0:55:47]}  Ra7 {[%clk 0:01:48]}
61. Kg5 {[%clk 0:55:47]}  Rg7 {[%clk 0:01:17]} 62. Qd6 {[%clk 0:55:15]}  Rg8 {[%clk 0:00:40]} 63. Qe7+ {[%clk 0:55:35]}  Rg7 {[%clk 0:01:00]}
64. Qf8 {[%clk 0:55:47]}  Ra7 {[%clk 0:00:33]} 65. Qh6+ {[%clk 0:55:48]}  Kg8 {[%clk 0:00:58]} 66. Qxg6+ {[%clk 0:56:15]}  Rg7 {[%clk 0:01:13]}
67. Kxh5 {[%clk 0:56:41]} 1-0

[Event "Irish Championship 2026"]
[Site "Talbot Hotel Stillorgan, Co.Dublin, IE"]
[Date "2026.08.02"]
[Round "2"]
[White "Hayes, Peter J."]
[Black "Venkatesan, Kavin"]
[Result "0-1"]
[Board "63"]
[TimeControl "40/5400+30:1800+30"]
[WhiteFideId "2502569"]
[BlackFideId "2512602"]
[WhiteElo "2073"]
[BlackElo "2297"]
[BlackTitle "FM"]
[WhiteClock "0:00:31"]
[BlackClock "0:01:54"]
[Variant "Standard"]
[EndDate "2026.08.02"]
[EndTime "17:53:24"]

1. d4 {[%clk 1:28:44]}  Nf6 {[%clk 1:30:52]} 2. c4 {[%clk 1:29:05]}  e6 {[%clk 1:31:17]} 3. Nc3 {[%clk 1:29:31]}  Bb4 {[%clk 1:31:42]}
4. Nf3 {[%clk 1:29:56]}  Bxc3+ {[%clk 1:29:49]} 5. bxc3 {[%clk 1:30:18]}  d6 {[%clk 1:28:05]} 6. e3 {[%clk 1:10:48]}  Qe7 {[%clk 1:26:37]}
7. Ba3 {[%clk 1:03:35]}  Nbd7 {[%clk 1:20:19]} 8. Bd3 {[%clk 0:43:51]}  c5 {[%clk 1:10:52]} 9. Qc2 {[%clk 0:35:40]}  e5 {[%clk 1:02:01]}
10. Ng5 {[%clk 0:36:00]}  h6 {[%clk 0:50:47]} 11. Ne4 {[%clk 0:36:16]}  O-O {[%clk 0:39:34]} 12. O-O {[%clk 0:35:17]}  Nxe4 {[%clk 0:38:17]}
13. Bxe4 {[%clk 0:35:39]}  Nb6 {[%clk 0:37:53]} 14. dxc5 {[%clk 0:34:47]}  dxc5 {[%clk 0:35:26]} 15. Bd5 {[%clk 0:35:11]}  Nxd5 {[%clk 0:30:01]}
16. cxd5 {[%clk 0:35:35]}  b6 {[%clk 0:29:52]} 17. c4 {[%clk 0:34:08]}  f5 {[%clk 0:28:10]} 18. Bb2 {[%clk 0:32:21]}  e4 {[%clk 0:24:25]}
19. Qc3 {[%clk 0:21:29]}  Bd7 {[%clk 0:23:17]} 20. a4 {[%clk 0:19:14]}  Rf7 {[%clk 0:17:40]} 21. g3 {[%clk 0:15:16]}  Re8 {[%clk 0:09:41]}
22. Rfe1 {[%clk 0:07:46]}  Qd6 {[%clk 0:09:36]} 23. Ra3 {[%clk 0:04:18]}  Kh7 {[%clk 0:09:18]} 24. Raa1 {[%clk 0:04:20]}  Kg8 {[%clk 0:02:52]}
25. Ra2 {[%clk 0:03:06]}  Kh7 {[%clk 0:03:11]} 26. Raa1 {[%clk 0:03:30]}  g5 {[%clk 0:01:53]} 27. Ra3 {[%clk 0:02:15]}  Qg6 {[%clk 0:01:48]}
28. a5 {[%clk 0:02:00]}  f4 {[%clk 0:01:52]} 29. exf4 {[%clk 0:02:03]}  gxf4 {[%clk 0:02:13]} 30. axb6 {[%clk 0:01:37]}  axb6 {[%clk 0:02:41]}
31. Ra6 {[%clk 0:00:34]}  e3 {[%clk 0:02:14]} 32. Rf1 {[%clk 0:00:31]}  Bh3 {[%clk 0:01:54]} 0-1

[Event "Irish Championship 2026"]
[Site "Talbot Hotel Stillorgan, Co.Dublin, IE"]
[Date "2026.08.02"]
[Round "2"]
[White "Arun, Nitish"]
[Black "Hughes, Padraig"]
[Result "1/2-1/2"]
[Board "66"]
[TimeControl "40/5400+30:1800+30"]
[WhiteFideId "2524201"]
[BlackFideId "2505690"]
[WhiteElo "2175"]
[BlackElo "2022"]
[WhiteTitle "CM"]
[WhiteClock "0:34:55"]
[BlackClock "0:28:09"]
[Variant "Standard"]
[EndDate "2026.08.02"]
[EndTime "17:55:32"]

1. d4 {[%clk 1:30:54]}  Nf6 {[%clk 1:30:47]} 2. c4 {[%clk 1:31:16]}  e6 {[%clk 1:31:13]} 3. Nc3 {[%clk 1:31:38]}  d5 {[%clk 1:31:36]}
4. Nf3 {[%clk 1:31:40]}  c5 {[%clk 1:31:59]} 5. cxd5 {[%clk 1:31:46]}  Nxd5 {[%clk 1:32:21]} 6. e4 {[%clk 1:23:34]}  Nxc3 {[%clk 1:32:37]}
7. bxc3 {[%clk 1:23:58]}  cxd4 {[%clk 1:33:02]} 8. cxd4 {[%clk 1:20:34]}  Bb4+ {[%clk 1:33:12]} 9. Bd2 {[%clk 1:20:53]}  Bxd2+ {[%clk 1:33:35]}
10. Qxd2 {[%clk 1:21:13]}  O-O {[%clk 1:33:57]} 11. Be2 {[%clk 1:17:58]}  Nc6 {[%clk 1:34:20]} 12. O-O {[%clk 1:16:58]}  Qd6 {[%clk 1:34:43]}
13. Rfd1 {[%clk 1:13:21]}  Rd8 {[%clk 1:34:59]} 14. Rac1 {[%clk 1:11:05]}  h6 {[%clk 1:22:32]} 15. Qe3 {[%clk 1:07:03]}  Bd7 {[%clk 1:15:35]}
16. Bd3 {[%clk 0:56:27]}  Rac8 {[%clk 1:09:14]} 17. Bb1 {[%clk 0:55:57]}  Ne7 {[%clk 1:07:58]} 18. h3 {[%clk 0:49:25]}  Qb4 {[%clk 1:03:03]}
19. Rxc8 {[%clk 0:22:56]}  Rxc8 {[%clk 1:03:07]} 20. d5 {[%clk 0:16:36]}  exd5 {[%clk 0:53:02]} 21. exd5 {[%clk 0:16:19]}  Nxd5 {[%clk 0:52:38]}
22. Qe4 {[%clk 0:13:56]}  Qxe4 {[%clk 0:49:19]} 23. Bxe4 {[%clk 0:13:58]}  Nc3 {[%clk 0:25:34]} 24. Rxd7 {[%clk 0:13:28]}  Nxe4 {[%clk 0:25:59]}
25. Rxb7 {[%clk 0:13:42]}  Rc1+ {[%clk 0:26:00]} 26. Kh2 {[%clk 0:14:05]}  Nxf2 {[%clk 0:21:39]} 27. Rxa7 {[%clk 0:14:18]}  g5 {[%clk 0:20:34]}
28. Nd4 {[%clk 0:11:35]}  h5 {[%clk 0:16:44]} 29. g3 {[%clk 0:05:02]}  Rc4 {[%clk 0:11:50]} 30. Kg2 {[%clk 0:01:31]}  Nxh3 {[%clk 0:10:14]}
31. Kxh3 {[%clk 0:01:52]}  Rxd4 {[%clk 0:10:38]} 32. Ra5 {[%clk 0:02:17]}  Rg4 {[%clk 0:08:28]} 33. a4 {[%clk 0:01:53]}  Kg7 {[%clk 0:08:47]}
34. Ra8 {[%clk 0:01:58]}  Rb4 {[%clk 0:08:33]} 35. Kg2 {[%clk 0:01:46]}  h4 {[%clk 0:08:30]} 36. gxh4 {[%clk 0:02:00]}  Rxh4 {[%clk 0:08:48]}
37. a5 {[%clk 0:01:56]}  Ra4 {[%clk 0:02:59]} 38. Ra6 {[%clk 0:01:44]}  f6 {[%clk 0:03:16]} 39. Ra8 {[%clk 0:02:06]}  Kg6 {[%clk 0:03:33]}
40. a6 {[%clk 0:02:31]}  g4 {[%clk 0:01:33]} 41. a7 {[%clk 0:01:49]}  Kf5 {[%clk 0:28:23]} 42. Kg3 {[%clk 0:31:50]}  Ra3+ {[%clk 0:28:46]}
43. Kg2 {[%clk 0:32:16]}  Kf4 {[%clk 0:28:54]} 44. Rf8 {[%clk 0:32:26]}  Ra2+ {[%clk 0:29:17]} 45. Kg1 {[%clk 0:32:44]}  Rxa7 {[%clk 0:29:36]}
46. Rxf6+ {[%clk 0:33:10]}  Kg3 {[%clk 0:29:47]} 47. Rf1 {[%clk 0:33:29]}  Ra2 {[%clk 0:27:40]} 48. Rb1 {[%clk 0:33:45]}  Kh3 {[%clk 0:27:51]}
49. Rb3+ {[%clk 0:33:18]}  g3 {[%clk 0:28:13]} 50. Rb1 {[%clk 0:33:46]}  Rg2+ {[%clk 0:28:29]} 51. Kh1 {[%clk 0:34:11]}  Rd2 {[%clk 0:28:54]}
52. Kg1 {[%clk 0:34:20]}  Ra2 {[%clk 0:28:58]} 53. Rc1 {[%clk 0:34:35]}  Rd2 {[%clk 0:27:52]} 54. Ra1 {[%clk 0:34:55]}  Rc2 {[%clk 0:28:09]} 1/2-1/2

[Event "Irish Championship 2026"]
[Site "Talbot Hotel Stillorgan, Co.Dublin, IE"]
[Date "2026.08.02"]
[Round "2"]
[White "Ryan, Joshua"]
[Black "Melaugh, Shane"]
[Result "0-1"]
[Board "69"]
[TimeControl "40/5400+30:1800+30"]
[WhiteFideId "2516705"]
[BlackFideId "2509580"]
[WhiteElo "1866"]
[BlackElo "2157"]
[BlackTitle "FM"]
[WhiteClock "0:24:03"]
[BlackClock "0:33:40"]
[Variant "Standard"]
[EndDate "2026.08.02"]
[EndTime "16:49:15"]

1. e4 {[%clk 1:30:40]}  e6 {[%clk 1:13:34]} 2. d4 {[%clk 1:31:03]}  d5 {[%clk 1:14:00]} 3. Nc3 {[%clk 1:31:28]}  Nf6 {[%clk 1:14:25]}
4. e5 {[%clk 1:31:49]}  Nfd7 {[%clk 1:14:50]} 5. f4 {[%clk 1:32:14]}  c5 {[%clk 1:15:17]} 6. Nf3 {[%clk 1:32:40]}  Nc6 {[%clk 1:15:43]}
7. Be3 {[%clk 1:33:07]}  h6 {[%clk 1:16:09]} 8. h4 {[%clk 1:20:39]}  Be7 {[%clk 1:11:49]} 9. g3 {[%clk 1:20:20]}  O-O {[%clk 1:06:12]}
10. Qd2 {[%clk 1:15:45]}  f6 {[%clk 1:05:01]} 11. exf6 {[%clk 1:13:16]}  Nxf6 {[%clk 1:03:07]} 12. O-O-O {[%clk 1:08:56]}  c4 {[%clk 0:57:41]}
13. Bh3 {[%clk 0:51:33]}  Bb4 {[%clk 0:50:35]} 14. Qe1 {[%clk 0:51:32]}  Qa5 {[%clk 0:48:52]} 15. a3 {[%clk 0:51:26]}  Bxc3 {[%clk 0:45:55]}
16. Qxc3 {[%clk 0:51:45]}  Qxc3 {[%clk 0:46:20]} 17. bxc3 {[%clk 0:52:11]}  Ne4 {[%clk 0:46:46]} 18. g4 {[%clk 0:48:58]}  Nxc3 {[%clk 0:47:00]}
19. Rde1 {[%clk 0:48:44]}  Bd7 {[%clk 0:46:15]} 20. g5 {[%clk 0:48:27]}  h5 {[%clk 0:44:00]} 21. g6 {[%clk 0:47:58]}  Rf6 {[%clk 0:41:55]}
22. Rhg1 {[%clk 0:47:08]}  Ne7 {[%clk 0:40:06]} 23. Ne5 {[%clk 0:47:00]}  Be8 {[%clk 0:40:27]} 24. Rg2 {[%clk 0:36:42]}  Ne4 {[%clk 0:37:00]}
25. Reg1 {[%clk 0:34:24]}  Nf5 {[%clk 0:35:58]} 26. Bxf5 {[%clk 0:34:06]}  exf5 {[%clk 0:34:34]} 27. Bd2 {[%clk 0:34:09]}  c3 {[%clk 0:34:23]}
28. Be1 {[%clk 0:34:30]}  Ra6 {[%clk 0:34:46]} 29. Kb1 {[%clk 0:30:59]}  Rxa3 {[%clk 0:34:44]} 30. Nd3 {[%clk 0:30:57]}  Rd8 {[%clk 0:34:25]}
31. Nc1 {[%clk 0:30:19]}  Rd6 {[%clk 0:34:46]} 32. Nb3 {[%clk 0:30:34]}  a5 {[%clk 0:34:48]} 33. Re2 {[%clk 0:30:18]}  Ba4 {[%clk 0:34:52]}
34. Rxe4 {[%clk 0:30:23]}  dxe4 {[%clk 0:34:45]} 35. Bxc3 {[%clk 0:30:45]}  Be8 {[%clk 0:32:36]} 36. Kb2 {[%clk 0:27:19]}  Ra4 {[%clk 0:33:02]}
37. Nc5 {[%clk 0:26:10]}  Rc4 {[%clk 0:32:59]} 38. Kb3 {[%clk 0:25:53]}  Bb5 {[%clk 0:33:17]} 39. Ra1 {[%clk 0:24:25]}  a4+ {[%clk 0:33:39]}
40. Kb2 {[%clk 0:24:12]}  b6 {[%clk 0:33:57]} 41. Nb3 {[%clk 0:24:03]}  Rxg6 {[%clk 0:33:40]} 0-1

[Event "Irish Championship 2026"]
[Site "Talbot Hotel Stillorgan, Co.Dublin, IE"]
[Date "2026.08.02"]
[Round "2"]
[White "Dash, Shaurya"]
[Black "Woods, Yannick"]
[Result "0-1"]
[Board "70"]
[TimeControl "40/5400+30:1800+30"]
[WhiteFideId "2534789"]
[BlackFideId "2518384"]
[WhiteElo "1751"]
[BlackElo "2118"]
[WhiteClock "0:04:48"]
[BlackClock "0:47:09"]
[Variant "Standard"]
[EndDate "2026.08.02"]
[EndTime "16:28:47"]

1. d4 {[%clk 1:30:56]}  Nf6 {[%clk 1:30:56]} 2. c4 {[%clk 1:31:19]}  e6 {[%clk 1:31:22]} 3. Nc3 {[%clk 1:31:09]}  Bb4 {[%clk 1:31:47]}
4. Qc2 {[%clk 1:31:01]}  c5 {[%clk 1:32:11]} 5. e3 {[%clk 1:28:20]}  cxd4 {[%clk 1:14:18]} 6. exd4 {[%clk 1:28:36]}  Nc6 {[%clk 1:14:46]}
7. Nf3 {[%clk 1:14:41]}  d5 {[%clk 1:15:00]} 8. Bd2 {[%clk 1:11:00]}  O-O {[%clk 1:08:44]} 9. a3 {[%clk 1:03:07]}  Be7 {[%clk 1:07:07]}
10. cxd5 {[%clk 0:59:21]}  Nxd5 {[%clk 1:07:04]} 11. Nxd5 {[%clk 0:57:08]}  Qxd5 {[%clk 1:07:10]} 12. Bc4 {[%clk 0:50:00]}  Nxd4 {[%clk 1:04:26]}
13. Nxd4 {[%clk 0:45:17]}  Qxd4 {[%clk 1:01:08]} 14. O-O {[%clk 0:43:52]}  Bd7 {[%clk 0:58:03]} 15. Rfd1 {[%clk 0:39:03]}  Bc6 {[%clk 0:57:57]}
16. Qb3 {[%clk 0:27:05]}  Bc5 {[%clk 0:54:55]} 17. Qg3 {[%clk 0:14:45]}  Qxc4 {[%clk 0:46:39]} 18. Bh6 {[%clk 0:14:20]}  g6 {[%clk 0:46:53]}
19. Rac1 {[%clk 0:11:19]}  Qe2 {[%clk 0:47:09]} 20. Qc3 {[%clk 0:04:48]} 0-1

[Event "Irish Championship 2026"]
[Site "Talbot Hotel Stillorgan, Co.Dublin, IE"]
[Date "2026.08.02"]
[Round "2"]
[White "Barnes, Oliver"]
[Black "Fox, Anthony"]
[Result "1-0"]
[Board "71"]
[TimeControl "40/5400+30:1800+30"]
[WhiteFideId "2517604"]
[BlackFideId "2500736"]
[WhiteElo "2107"]
[BlackElo "1876"]
[WhiteClock "0:02:10"]
[BlackClock "0:02:37"]
[Variant "Standard"]
[EndDate "2026.08.02"]
[EndTime "17:48:40"]

1. Nf3 {[%clk 1:30:57]}  d5 {[%clk 1:30:48]} 2. e3 {[%clk 1:31:20]}  Nf6 {[%clk 1:30:52]} 3. c4 {[%clk 1:31:15]}  e6 {[%clk 1:30:31]}
4. Nc3 {[%clk 1:31:36]}  Be7 {[%clk 1:30:37]} 5. b3 {[%clk 1:31:57]}  O-O {[%clk 1:29:50]} 6. Bb2 {[%clk 1:31:13]}  b6 {[%clk 1:21:33]}
7. cxd5 {[%clk 1:31:30]}  exd5 {[%clk 1:19:44]} 8. d4 {[%clk 1:28:41]}  Be6 {[%clk 1:12:58]} 9. Bd3 {[%clk 1:23:53]}  h6 {[%clk 1:04:47]}
10. Ne5 {[%clk 1:20:09]}  Nfd7 {[%clk 0:49:44]} 11. f4 {[%clk 1:14:12]}  Nxe5 {[%clk 0:49:41]} 12. dxe5 {[%clk 1:14:29]}  f5 {[%clk 0:42:54]}
13. Qf3 {[%clk 1:08:15]}  c6 {[%clk 0:39:49]} 14. O-O-O {[%clk 0:56:03]}  Nd7 {[%clk 0:39:22]} 15. Bc2 {[%clk 0:44:36]}  a5 {[%clk 0:33:38]}
16. Ne2 {[%clk 0:37:26]}  Nc5 {[%clk 0:31:44]} 17. Nd4 {[%clk 0:37:17]}  Qd7 {[%clk 0:30:01]} 18. Qh5 {[%clk 0:35:16]}  Kh7 {[%clk 0:24:32]}
19. Nxe6 {[%clk 0:26:12]}  Qxe6 {[%clk 0:24:07]} 20. g4 {[%clk 0:26:41]}  Ne4 {[%clk 0:11:46]} 21. gxf5 {[%clk 0:26:44]}  Rxf5 {[%clk 0:11:35]}
22. Qf3 {[%clk 0:26:44]}  g6 {[%clk 0:09:31]} 23. Bxe4 {[%clk 0:24:48]}  dxe4 {[%clk 0:09:55]} 24. Qxe4 {[%clk 0:25:16]}  Rff8 {[%clk 0:09:56]}
25. h4 {[%clk 0:24:55]}  h5 {[%clk 0:09:59]} 26. Bc3 {[%clk 0:10:18]}  Rad8 {[%clk 0:09:30]} 27. Rxd8 {[%clk 0:08:51]}  Rxd8 {[%clk 0:09:54]}
28. Qc2 {[%clk 0:06:31]}  Qg4 {[%clk 0:09:33]} 29. Bd4 {[%clk 0:03:55]}  c5 {[%clk 0:09:20]} 30. Bc3 {[%clk 0:03:06]}  Bxh4 {[%clk 0:09:02]}
31. Qe4 {[%clk 0:03:18]}  Be7 {[%clk 0:08:03]} 32. e6 {[%clk 0:02:27]}  Qf5 {[%clk 0:03:50]} 33. Qxf5 {[%clk 0:01:57]}  gxf5 {[%clk 0:04:15]}
34. Rxh5+ {[%clk 0:01:35]}  Kg6 {[%clk 0:04:39]} 35. Rh3 {[%clk 0:00:57]}  Rd6 {[%clk 0:04:51]} 36. Rg3+ {[%clk 0:01:27]}  Kh6 {[%clk 0:04:22]}
37. e4 {[%clk 0:01:23]}  Rxe6 {[%clk 0:03:11]} 38. exf5 {[%clk 0:01:50]}  Rc6 {[%clk 0:02:37]} 39. Rh3+ {[%clk 0:02:10]} 1-0

[Event "Irish Championship 2026"]
[Site "Talbot Hotel Stillorgan, Co.Dublin, IE"]
[Date "2026.08.02"]
[Round "2"]
[White "Field, Lila Quinn"]
[Black "Daly, Colm"]
[Result "0-1"]
[Board "73"]
[TimeControl "40/5400+30:1800+30"]
[WhiteFideId "30941334"]
[BlackFideId "2500434"]
[WhiteElo "1898"]
[BlackElo "2182"]
[BlackTitle "FM"]
[WhiteClock "0:04:24"]
[BlackClock "0:11:37"]
[Variant "Standard"]
[EndDate "2026.08.02"]
[EndTime "18:59:14"]

1. d4 {[%clk 1:30:57]}  e6 {[%clk 0:54:47]} 2. Nc3 {[%clk 1:30:30]}  Bb4 {[%clk 0:54:18]} 3. e4 {[%clk 1:27:12]}  d5 {[%clk 0:54:35]}
4. e5 {[%clk 1:26:37]}  Ne7 {[%clk 0:54:54]} 5. a3 {[%clk 1:24:45]}  Bxc3+ {[%clk 0:55:21]} 6. bxc3 {[%clk 1:25:05]}  Qd7 {[%clk 0:54:16]}
7. Bd3 {[%clk 1:19:23]}  b6 {[%clk 0:53:36]} 8. Nf3 {[%clk 1:14:00]}  Ba6 {[%clk 0:53:55]} 9. Bxa6 {[%clk 1:14:04]}  Nxa6 {[%clk 0:54:23]}
10. Qd3 {[%clk 1:12:33]}  Qa4 {[%clk 0:53:58]} 11. O-O {[%clk 1:09:50]}  h6 {[%clk 0:51:55]} 12. Nh4 {[%clk 1:03:34]}  g5 {[%clk 0:46:46]}
13. Nf3 {[%clk 1:03:21]}  c5 {[%clk 0:47:13]} 14. h3 {[%clk 0:53:00]}  Rc8 {[%clk 0:47:32]} 15. Bd2 {[%clk 0:31:45]}  c4 {[%clk 0:44:23]}
16. Qe2 {[%clk 0:30:38]}  Qxc2 {[%clk 0:44:23]} 17. Ne1 {[%clk 0:24:22]}  Qg6 {[%clk 0:41:51]} 18. f4 {[%clk 0:22:15]}  Nf5 {[%clk 0:42:08]}
19. Kh2 {[%clk 0:18:28]}  gxf4 {[%clk 0:39:11]} 20. Bxf4 {[%clk 0:17:34]}  h5 {[%clk 0:39:32]} 21. g3 {[%clk 0:15:21]}  Nb8 {[%clk 0:39:47]}
22. Nf3 {[%clk 0:14:36]}  Nc6 {[%clk 0:40:15]} 23. Rg1 {[%clk 0:11:46]}  Kd7 {[%clk 0:39:51]} 24. Nh4 {[%clk 0:10:02]}  Qh7 {[%clk 0:38:35]}
25. Bg5 {[%clk 0:09:21]}  Rhg8 {[%clk 0:36:54]} 26. Bf6 {[%clk 0:09:12]}  Nxh4 {[%clk 0:26:19]} 27. Bxh4 {[%clk 0:09:29]}  Na5 {[%clk 0:24:28]}
28. Raf1 {[%clk 0:09:21]}  Rcf8 {[%clk 0:24:11]} 29. Rf3 {[%clk 0:08:57]}  Nb3 {[%clk 0:23:35]} 30. Rgf1 {[%clk 0:08:47]}  Ke8 {[%clk 0:23:51]}
31. Qe3 {[%clk 0:06:29]}  Qc2+ {[%clk 0:17:22]} 32. R1f2 {[%clk 0:06:01]}  Qc1 {[%clk 0:15:23]} 33. Qxc1 {[%clk 0:04:59]}  Nxc1 {[%clk 0:15:47]}
34. Bf6 {[%clk 0:05:14]}  Rg6 {[%clk 0:14:48]} 35. h4 {[%clk 0:05:04]}  Nb3 {[%clk 0:11:57]} 36. Bg5 {[%clk 0:05:09]}  Na5 {[%clk 0:10:19]}
37. Kh3 {[%clk 0:03:56]}  Nc6 {[%clk 0:08:54]} 38. Rf6 {[%clk 0:03:03]}  Rxf6 {[%clk 0:07:21]} 39. Rxf6 {[%clk 0:03:15]}  Rh8 {[%clk 0:07:26]}
40. Rh6 {[%clk 0:01:42]}  Rxh6 {[%clk 0:07:15]} 41. Bxh6 {[%clk 0:02:10]}  f5 {[%clk 0:06:33]} 42. exf6 {[%clk 0:02:24]}  e5 {[%clk 0:05:38]}
43. Be3 {[%clk 0:25:37]}  exd4 {[%clk 0:36:04]} 44. cxd4 {[%clk 0:25:54]}  Kf7 {[%clk 0:27:47]} 45. g4 {[%clk 0:25:27]}  Kxf6 {[%clk 0:15:45]}
46. gxh5 {[%clk 0:25:45]}  Kf5 {[%clk 0:16:06]} 47. h6 {[%clk 0:25:56]}  Kg6 {[%clk 0:16:35]} 48. h5+ {[%clk 0:25:56]}  Kh7 {[%clk 0:17:03]}
49. Kg4 {[%clk 0:25:23]}  b5 {[%clk 0:17:26]} 50. Kf3 {[%clk 0:19:32]}  a5 {[%clk 0:17:09]} 51. Ke2 {[%clk 0:19:29]}  b4 {[%clk 0:16:55]}
52. axb4 {[%clk 0:19:40]}  axb4 {[%clk 0:17:13]} 53. Kd2 {[%clk 0:18:53]}  Ne7 {[%clk 0:16:35]} 54. Kc1 {[%clk 0:09:30]}  Nf5 {[%clk 0:16:44]}
55. Bg5 {[%clk 0:08:52]}  Nxd4 {[%clk 0:15:10]} 56. Kb1 {[%clk 0:05:43]}  Ne6 {[%clk 0:12:46]} 57. Bd2 {[%clk 0:05:00]}  c3 {[%clk 0:09:51]}
58. Bc1 {[%clk 0:04:48]}  b3 {[%clk 0:10:03]} 59. Ba3 {[%clk 0:03:09]}  Kxh6 {[%clk 0:09:54]} 60. Bb4 {[%clk 0:03:08]}  d4 {[%clk 0:10:18]}
61. Kc1 {[%clk 0:03:09]}  Kxh5 {[%clk 0:10:21]} 62. Kb1 {[%clk 0:03:22]}  Kg4 {[%clk 0:10:43]} 63. Ka1 {[%clk 0:03:32]}  Kf3 {[%clk 0:11:08]}
64. Kb1 {[%clk 0:03:54]}  Ke2 {[%clk 0:11:32]} 65. Ka1 {[%clk 0:03:58]}  Kd1 {[%clk 0:11:54]} 66. Ba3 {[%clk 0:03:54]}  Kc2 {[%clk 0:12:11]}
67. Bc1 {[%clk 0:04:05]}  Nc5 {[%clk 0:11:58]} 68. Be3 {[%clk 0:03:57]}  b2+ {[%clk 0:12:09]} 69. Ka2 {[%clk 0:04:24]}  b1=B+ {[%clk 0:11:37]} 0-1

[Event "Irish Championship 2026"]
[Site "Talbot Hotel Stillorgan, Co.Dublin, IE"]
[Date "2026.08.02"]
[Round "2"]
[White "Bartczak, Korneliusz"]
[Black "Burke, Kevin A."]
[Result "1/2-1/2"]
[Board "74"]
[TimeControl "40/5400+30:1800+30"]
[WhiteFideId "2523558"]
[BlackFideId "2501520"]
[WhiteElo "2062"]
[BlackElo "1896"]
[WhiteClock "0:31:28"]
[BlackClock "1:25:26"]
[Variant "Standard"]
[EndDate "2026.08.02"]
[EndTime "15:23:09"]

1. d4 {[%clk 1:30:51]}  e6 {[%clk 1:30:55]} 2. c4 {[%clk 1:31:08]}  f5 {[%clk 1:31:21]} 3. Nc3 {[%clk 1:31:20]}  Nf6 {[%clk 1:31:46]}
4. Nf3 {[%clk 1:31:39]}  Bb4 {[%clk 1:32:11]} 5. Qc2 {[%clk 1:30:18]}  O-O {[%clk 1:32:33]} 6. e3 {[%clk 1:19:57]}  b6 {[%clk 1:32:55]}
7. Bd3 {[%clk 1:15:49]}  Bb7 {[%clk 1:33:18]} 8. Bd2 {[%clk 1:15:17]}  Bxc3 {[%clk 1:30:39]} 9. Bxc3 {[%clk 1:15:06]}  Ne4 {[%clk 1:30:43]}
10. O-O-O {[%clk 1:08:15]}  a5 {[%clk 1:28:44]} 11. h4 {[%clk 1:06:21]}  Na6 {[%clk 1:25:26]} 12. Ne1 {[%clk 0:31:28]} 1/2-1/2